[Event "FIDE Women World Blitz 2021"]
[Site "Warsaw"]
[Date "2021.12.30"]
[Round "14.11"]
[White "Dzagnidze, Nana"]
[Black "Muetsch, Annmarie"]
[Result "1-0"]
[ECO "E69"]
[WhiteElo "2524"]
[BlackElo "2279"]
[Annotator "ChessBase"]
[PlyCount "87"]
[EventDate "2021.12.29"]
[EventType "swiss"]
[EventCountry "POL"]
[Tiebreak "Cut1 Buchholz"]
[SourceTitle "playchess.com"]
[Source "ChessBase"]
[SourceQuality "1"]
[TimeControl "180+2"]

1. d4 {[%emt 0:00:01]} Nf6 {[%emt 0:00:00]} 2. c4 {[%emt 0:00:01]} g6 {[%emt 0:
00:01]} 3. g3 {[%emt 0:00:03]} Bg7 {[%emt 0:00:01]} 4. Bg2 {[%emt 0:00:02]} O-O
{[%emt 0:00:01]} 5. Nc3 {[%emt 0:00:02]} d6 {[%emt 0:00:02]} 6. Nf3 {[%emt 0:
00:02]} Nbd7 {[%emt 0:00:08]} 7. O-O {[%emt 0:00:03]} e5 {[%emt 0:00:01]} 8. e4
{[%emt 0:00:02]} c6 {[%emt 0:00:08]} 9. h3 {[%emt 0:00:06]} a5 {[%emt 0:00:10]}
10. Be3 {[%emt 0:00:08]} Qe7 {[%emt 0:00:09]} 11. Qc2 {[%emt 0:00:07]} Re8 {
[%emt 0:00:06]} 12. Rad1 {[%emt 0:00:38]} exd4 {[%emt 0:00:02]} 13. Nxd4 {
[%emt 0:00:06]} Nc5 {[%emt 0:00:04]} 14. Rfe1 {[%emt 0:00:10]} a4 {[%emt 0:00:
12]} 15. f3 {[%emt 0:00:14]} Nh5 {[%emt 0:00:04]} 16. Bf2 {[%emt 0:00:02]} Qg5
{[%emt 0:00:22]} 17. f4 {[%emt 0:00:05]} Qe7 {[%emt 0:00:06]} 18. Kh2 {[%emt 0:
00:08]} Ne6 {[%emt 0:00:01]} 19. Nxa4 {[%emt 0:00:13]} Nxd4 {[%emt 0:00:13]}
20. Bxd4 {[%emt 0:00:01]} Be6 {[%emt 0:00:19]} 21. b3 {[%emt 0:00:21]} b5 {
[%emt 0:00:04]} 22. Bxg7 {[%emt 0:00:06]} Kxg7 {[%emt 0:00:06]} 23. cxb5 {
[%emt 0:00:05]} cxb5 {[%emt 0:00:01]} 24. Nb6 {[%emt 0:00:03]} Ra6 {[%emt 0:00:
28]} 25. Nd5 {[%emt 0:00:06]} Bxd5 {[%emt 0:00:13]} 26. Rxd5 {[%emt 0:00:11]}
Qa7 {[%emt 0:00:11]} 27. Re2 {[%emt 0:00:12]} Nf6 {[%emt 0:00:05]} 28. Rxb5 {
[%emt 0:00:03]} h5 {[%emt 0:00:13]} 29. Qb2 {[%emt 0:00:10]} Re6 {[%emt 0:00:
11]} 30. a4 {[%emt 0:00:03]} Qe7 {[%emt 0:00:05]} 31. e5 {[%emt 0:00:08]} dxe5
{[%emt 0:00:04]} 32. Rbxe5 {[%emt 0:00:05]} Kg8 {[%emt 0:00:09]} 33. a5 {
[%emt 0:00:08]} Rxe5 {[%emt 0:00:02]} 34. Rxe5 {[%emt 0:00:02]} Qd8 {[%emt 0:
00:02]} 35. b4 {[%emt 0:00:02]} Nd7 {[%emt 0:00:02]} 36. Rd5 {[%emt 0:00:02]}
Qc7 {[%emt 0:00:02]} 37. Qd4 {[%emt 0:00:02]} Nf8 {[%emt 0:00:02]} 38. Rd8 {
[%emt 0:00:03]} Re6 {[%emt 0:00:04]} 39. b5 {[%emt 0:00:04]} Qe7 {[%emt 0:00:
03]} 40. a6 {[%emt 0:00:05]} Re2 {[%emt 0:00:00]} 41. a7 {[%emt 0:00:03]} Rxg2+
{[%emt 0:00:02]} 42. Kxg2 {[%emt 0:00:01]} Qe2+ {[%emt 0:00:01]} 43. Qf2 {
[%emt 0:00:01]} Qe4+ {[%emt 0:00:03]} 44. Kh2 {[%emt 0:00:02]} 1-0

[Event "FIDE Women World Blitz 2021"]
[Site "Warsaw"]
[Date "2021.12.30"]
[Round "14.11"]
[White "Zabrzanska, Weronika"]
[Black "Da Silva, Cibele Florencio"]
[Result "1-0"]
[ECO "C50"]
[WhiteElo "1596"]
[BlackElo "1405"]
[Annotator "NA"]
[PlyCount "40"]
[EventDate "2021.12.29"]
[EventType "swiss"]
[EventCountry "POL"]
[Tiebreak "Cut1 Buchholz"]
[SourceTitle "playchess.com"]
[Source "ChessBase"]
[SourceQuality "1"]
[TimeControl "180+2"]

1. e4 {[%emt 0:00:00]} e5 {[%emt 0:00:01]} 2. Nf3 {[%emt 0:00:02]} Nc6 {
[%emt 0:00:01]} 3. Bc4 {[%emt 0:00:01]} h6 {[%emt 0:00:05]} 4. d4 {[%emt 0:00:
02]} d6 {[%emt 0:00:19]} 5. dxe5 {[%emt 0:00:08]} dxe5 {[%emt 0:00:09]} 6.
Qxd8+ {[%emt 0:00:03]} Kxd8 {[%emt 0:00:02]} 7. Bxf7 {[%emt 0:00:03]} Nf6 {
[%emt 0:00:12]} 8. Nbd2 {[%emt 0:00:08]} Bb4 {[%emt 0:00:07]} 9. c3 {[%emt 0:
00:01]} Bc5 {[%emt 0:00:02]} 10. O-O {[%emt 0:00:03]} Ke7 {[%emt 0:00:03]} 11.
Bd5 {[%emt 0:00:03]} Bd7 {[%emt 0:00:06]} 12. Bxc6 {[%emt 0:00:06]} Bxc6 {
[%emt 0:00:01]} 13. Nxe5 {[%emt 0:00:01]} Nxe4 {[%emt 0:00:42]} 14. Nxc6+ {
[%emt 0:00:19]} bxc6 {[%emt 0:00:23]} 15. Nxe4 {[%emt 0:00:02]} Bb6 {[%emt 0:
00:08]} 16. Bf4 {[%emt 0:00:15]} Kf7 {[%emt 0:00:35]} 17. Rad1 {[%emt 0:00:03]}
Rad8 {[%emt 0:00:04]} 18. c4 {[%emt 0:00:11]} c5 {[%emt 0:00:13]} 19. Be3 {
[%emt 0:00:05]} Rhe8 {[%emt 0:00:12]} 20. Nxc5 {[%emt 0:00:22]} Bxc5 {[%emt 0:
00:14]} 1-0

[Event "FIDE Women World Blitz 2021"]
[Site "Warsaw"]
[Date "2021.12.30"]
[Round "14.12"]
[White "Injac, Teodora"]
[Black "Kashlinskaya, Alina"]
[Result "1/2-1/2"]
[ECO "E60"]
[WhiteElo "2387"]
[BlackElo "2482"]
[Annotator "ChessBase"]
[PlyCount "102"]
[EventDate "2021.12.29"]
[EventType "swiss"]
[EventCountry "POL"]
[Tiebreak "Cut1 Buchholz"]
[SourceTitle "playchess.com"]
[Source "ChessBase"]
[SourceQuality "1"]
[TimeControl "180+2"]

1. d4 {[%emt 0:00:01]} Nf6 {[%emt 0:00:01]} 2. c4 {[%emt 0:00:01]} g6 {[%emt 0:
00:01]} 3. Nf3 {[%emt 0:00:01]} Bg7 {[%emt 0:00:01]} 4. g3 {[%emt 0:00:01]} c5
{[%emt 0:00:02]} 5. Nc3 {[%emt 0:00:01]} cxd4 {[%emt 0:00:13]} 6. Nxd4 {
[%emt 0:00:01]} O-O {[%emt 0:00:01]} 7. Bg2 {[%emt 0:00:01]} Qc7 {[%emt 0:00:
01]} 8. Qd3 {[%emt 0:00:02]} Nc6 {[%emt 0:00:03]} 9. O-O {[%emt 0:00:16]} d6 {
[%emt 0:00:01]} 10. Nxc6 {[%emt 0:00:13]} bxc6 {[%emt 0:00:01]} 11. Bf4 {
[%emt 0:00:03]} Bf5 {[%emt 0:00:05]} 12. Qd2 {[%emt 0:00:11]} Rfd8 {[%emt 0:00:
04]} 13. Rac1 {[%emt 0:00:10]} Qd7 {[%emt 0:00:02]} 14. Rfd1 {[%emt 0:00:14]}
Bh3 {[%emt 0:00:01]} 15. Bh1 {[%emt 0:00:05]} h5 {[%emt 0:00:15]} 16. b4 {
[%emt 0:00:10]} Rac8 {[%emt 0:00:10]} 17. Bh6 {[%emt 0:00:36]} Bxh6 {[%emt 0:
00:12]} 18. Qxh6 {[%emt 0:00:01]} Qe6 {[%emt 0:00:01]} 19. Qf4 {[%emt 0:00:11]}
Kg7 {[%emt 0:00:19]} 20. Ne4 {[%emt 0:00:17]} Nxe4 {[%emt 0:00:05]} 21. Bxe4 {
[%emt 0:00:01]} h4 {[%emt 0:00:13]} 22. Qxh4 {[%emt 0:00:18]} Rh8 {[%emt 0:00:
01]} 23. Qf4 {[%emt 0:00:01]} f6 {[%emt 0:00:15]} 24. Bf3 {[%emt 0:00:04]} g5 {
[%emt 0:00:01]} 25. Qe4 {[%emt 0:00:04]} Qxe4 {[%emt 0:00:42]} 26. Bxe4 {
[%emt 0:00:01]} c5 {[%emt 0:00:01]} 27. b5 {[%emt 0:00:04]} f5 {[%emt 0:00:01]}
28. Bd5 {[%emt 0:00:02]} f4 {[%emt 0:00:01]} 29. f3 {[%emt 0:00:04]} Bf5 {
[%emt 0:00:06]} 30. e4 {[%emt 0:00:19]} Bg6 {[%emt 0:00:26]} 31. Be6 {[%emt 0:
00:02]} Rcf8 {[%emt 0:00:06]} 32. a4 {[%emt 0:00:03]} fxg3 {[%emt 0:00:01]} 33.
hxg3 {[%emt 0:00:00]} Rxf3 {[%emt 0:00:01]} 34. Kg2 {[%emt 0:00:03]} Bxe4 {
[%emt 0:00:00]} 35. Bd5 {[%emt 0:00:08]} Bxd5 {[%emt 0:00:06]} 36. Rxd5 {
[%emt 0:00:01]} Ra3 {[%emt 0:00:04]} 37. Rxg5+ {[%emt 0:00:06]} Kf6 {[%emt 0:
00:01]} 38. Rg4 {[%emt 0:00:02]} Ra2+ {[%emt 0:00:04]} 39. Kf3 {[%emt 0:00:00]}
Rhh2 {[%emt 0:00:03]} 40. Rf4+ {[%emt 0:00:01]} Ke6 {[%emt 0:00:01]} 41. Re1+ {
[%emt 0:00:02]} Kd7 {[%emt 0:00:00]} 42. Kg4 {[%emt 0:00:03]} Rxa4 {[%emt 0:00:
06]} 43. Rf7 {[%emt 0:00:06]} Rxc4+ {[%emt 0:00:02]} 44. Kg5 {[%emt 0:00:01]}
d5 {[%emt 0:00:19]} 45. Rfxe7+ {[%emt 0:00:10]} Kd8 {[%emt 0:00:01]} 46. Re8+ {
[%emt 0:00:03]} Kc7 {[%emt 0:00:01]} 47. R1e6 {[%emt 0:00:03]} Rb4 {[%emt 0:00:
05]} 48. R8e7+ {[%emt 0:00:01]} Kd8 {[%emt 0:00:01]} 49. Re8+ {[%emt 0:00:02]}
Kc7 {[%emt 0:00:00]} 50. R8e7+ {[%emt 0:00:00]} Kd8 {[%emt 0:00:01]} 51. Re8+
Kc7 1/2-1/2

[Event "FIDE Women World Blitz 2021"]
[Site "Warsaw"]
[Date "2021.12.30"]
[Round "14.12"]
[White "Bartel, Marta"]
[Black "Brambilla, Renee Blandy T."]
[Result "1-0"]
[ECO "E61"]
[WhiteElo "2192"]
[BlackElo "1651"]
[Annotator "NA"]
[PlyCount "63"]
[EventDate "2021.12.29"]
[EventType "swiss"]
[EventCountry "POL"]
[Tiebreak "Cut1 Buchholz"]
[SourceTitle "playchess.com"]
[Source "ChessBase"]
[SourceQuality "1"]
[TimeControl "180+2"]

1. d4 {[%emt 0:00:01]} Nf6 {[%emt 0:00:01]} 2. Nf3 {[%emt 0:00:01]} g6 {
[%emt 0:00:01]} 3. c4 {[%emt 0:00:01]} Bg7 {[%emt 0:00:02]} 4. Nc3 {[%emt 0:00:
01]} O-O {[%emt 0:00:01]} 5. Bg5 {[%emt 0:00:02]} d6 {[%emt 0:00:02]} 6. e3 {
[%emt 0:00:03]} c5 {[%emt 0:00:02]} 7. d5 {[%emt 0:00:02]} Nbd7 {[%emt 0:00:07]
} 8. Be2 {[%emt 0:00:02]} h6 {[%emt 0:00:07]} 9. Bh4 {[%emt 0:00:01]} Nb6 {
[%emt 0:00:10]} 10. O-O {[%emt 0:00:07]} Bf5 {[%emt 0:00:04]} 11. Nd2 {[%emt 0:
00:06]} Rc8 {[%emt 0:00:19]} 12. e4 {[%emt 0:00:07]} Bd7 {[%emt 0:00:03]} 13.
f4 {[%emt 0:00:02]} e6 {[%emt 0:00:20]} 14. e5 {[%emt 0:00:15]} dxe5 {[%emt 0:
00:09]} 15. fxe5 {[%emt 0:00:01]} g5 {[%emt 0:00:06]} 16. exf6 {[%emt 0:00:03]}
Bxf6 {[%emt 0:00:19]} 17. Bg3 {[%emt 0:00:02]} Bd4+ {[%emt 0:00:07]} 18. Kh1 {
[%emt 0:00:02]} e5 {[%emt 0:00:05]} 19. Nf3 {[%emt 0:00:24]} f5 {[%emt 0:00:07]
} 20. Nxe5 {[%emt 0:00:44]} f4 {[%emt 0:00:09]} 21. Nxd7 {[%emt 0:00:03]} Nxd7
{[%emt 0:00:08]} 22. Bf2 {[%emt 0:00:02]} Ne5 {[%emt 0:00:11]} 23. Bxd4 {
[%emt 0:00:04]} cxd4 {[%emt 0:00:02]} 24. Qxd4 {[%emt 0:00:02]} Qf6 {[%emt 0:
00:13]} 25. Ne4 {[%emt 0:00:05]} Qf5 {[%emt 0:00:12]} 26. Nd6 {[%emt 0:00:09]}
Qf6 {[%emt 0:00:26]} 27. Nxc8 {[%emt 0:00:02]} Rxc8 {[%emt 0:00:01]} 28. d6 {
[%emt 0:00:05]} Qe6 {[%emt 0:00:04]} 29. c5 {[%emt 0:00:06]} Nc6 {[%emt 0:00:
10]} 30. Qc4 {[%emt 0:00:06]} Re8 {[%emt 0:00:09]} 31. Qxe6+ {[%emt 0:00:01]}
Rxe6 {[%emt 0:00:01]} 32. Bc4 {[%emt 0:00:02]} 1-0

[Event "FIDE Women World Blitz 2021"]
[Site "Warsaw"]
[Date "2021.12.30"]
[Round "14.13"]
[White "Socko, Monika"]
[Black "Girya, Olga"]
[Result "1-0"]
[ECO "A46"]
[WhiteElo "2393"]
[BlackElo "2402"]
[Annotator "NA"]
[PlyCount "57"]
[EventDate "2021.12.29"]
[EventType "swiss"]
[EventCountry "POL"]
[Tiebreak "Cut1 Buchholz"]
[SourceTitle "playchess.com"]
[Source "ChessBase"]
[SourceQuality "1"]
[TimeControl "180+2"]

1. d4 {[%emt 0:00:01]} Nf6 {[%emt 0:00:00]} 2. Bf4 {[%emt 0:00:02]} e6 {
[%emt 0:00:04]} 3. Nf3 {[%emt 0:00:06]} c5 {[%emt 0:00:02]} 4. e3 {[%emt 0:00:
03]} cxd4 {[%emt 0:00:01]} 5. exd4 {[%emt 0:00:01]} b6 {[%emt 0:00:00]} 6. Bd3
{[%emt 0:00:05]} Be7 {[%emt 0:00:01]} 7. O-O {[%emt 0:00:03]} O-O {[%emt 0:00:
01]} 8. Nbd2 {[%emt 0:00:03]} Ba6 {[%emt 0:00:01]} 9. Bxa6 {[%emt 0:00:23]}
Nxa6 {[%emt 0:00:01]} 10. Qe2 {[%emt 0:00:02]} Nb8 {[%emt 0:00:01]} 11. c3 {
[%emt 0:00:02]} Nc6 {[%emt 0:00:03]} 12. Rad1 {[%emt 0:00:04]} Nh5 {[%emt 0:00:
35]} 13. Be3 {[%emt 0:00:13]} Nf6 {[%emt 0:00:01]} 14. Ne5 {[%emt 0:00:05]} Nd5
{[%emt 0:00:25]} 15. Ndf3 {[%emt 0:00:10]} Rc8 {[%emt 0:00:14]} 16. Bc1 {
[%emt 0:00:02]} d6 {[%emt 0:00:03]} 17. Nxc6 {[%emt 0:00:12]} Rxc6 {[%emt 0:00:
02]} 18. c4 {[%emt 0:00:02]} Nf6 {[%emt 0:00:00]} 19. Bg5 {[%emt 0:00:10]} d5 {
[%emt 0:00:10]} 20. b3 {[%emt 0:00:13]} Ne4 {[%emt 0:00:14]} 21. Bxe7 {[%emt 0:
00:05]} Qxe7 {[%emt 0:00:01]} 22. Rc1 {[%emt 0:00:03]} Rfc8 {[%emt 0:00:09]}
23. Ne5 {[%emt 0:00:03]} R6c7 {[%emt 0:00:00]} 24. Qe3 {[%emt 0:00:08]} Qa3 {
[%emt 0:00:16]} 25. Rc2 {[%emt 0:00:03]} Nd6 {[%emt 0:00:05]} 26. Rfc1 {
[%emt 0:00:14]} dxc4 {[%emt 0:00:26]} 27. Nxc4 {[%emt 0:00:08]} Nxc4 {[%emt 0:
00:30]} 28. bxc4 {[%emt 0:00:03]} h6 {[%emt 0:00:04]} 29. Qxa3 {[%emt 0:00:02]}
1-0

[Event "FIDE Women World Blitz 2021"]
[Site "Warsaw"]
[Date "2021.12.30"]
[Round "14.14"]
[White "Lach, Aleksandra"]
[Black "Zatonskih, Anna"]
[Result "0-1"]
[ECO "B01"]
[WhiteElo "2204"]
[BlackElo "2394"]
[Annotator "NA"]
[PlyCount "72"]
[EventDate "2021.12.29"]
[EventType "swiss"]
[EventCountry "POL"]
[Tiebreak "Cut1 Buchholz"]
[SourceTitle "playchess.com"]
[Source "ChessBase"]
[SourceQuality "1"]
[TimeControl "180+2"]

1. e4 {[%emt 0:00:02]} d5 {[%emt 0:00:00]} 2. exd5 {[%emt 0:00:02]} Qxd5 {
[%emt 0:00:01]} 3. Nf3 {[%emt 0:00:01]} Nf6 {[%emt 0:00:02]} 4. d4 {[%emt 0:00:
01]} c6 {[%emt 0:00:02]} 5. Be2 {[%emt 0:00:02]} Bg4 {[%emt 0:00:04]} 6. O-O {
[%emt 0:00:06]} e6 {[%emt 0:00:01]} 7. c4 {[%emt 0:00:05]} Qd8 {[%emt 0:00:01]}
8. Nc3 {[%emt 0:00:02]} Be7 {[%emt 0:00:03]} 9. a3 {[%emt 0:00:14]} O-O {
[%emt 0:00:04]} 10. h3 {[%emt 0:00:01]} Bh5 {[%emt 0:00:00]} 11. Bf4 {[%emt 0:
00:01]} Re8 {[%emt 0:00:15]} 12. g4 {[%emt 0:00:07]} Bg6 {[%emt 0:00:00]} 13.
Bg3 {[%emt 0:00:01]} Nbd7 {[%emt 0:00:12]} 14. Ne5 {[%emt 0:00:14]} Nxe5 {
[%emt 0:00:26]} 15. dxe5 {[%emt 0:00:06]} Ne4 {[%emt 0:00:06]} 16. Nxe4 {
[%emt 0:00:12]} Bxe4 {[%emt 0:00:00]} 17. f3 {[%emt 0:00:01]} Bc5+ {[%emt 0:00:
12]} 18. Bf2 {[%emt 0:00:09]} Bxf2+ {[%emt 0:00:02]} 19. Kxf2 {[%emt 0:00:08]}
Qb6+ {[%emt 0:00:08]} 20. Kg3 {[%emt 0:00:13]} Rad8 {[%emt 0:00:28]} 21. Qc1 {
[%emt 0:00:04]} Bg6 {[%emt 0:00:03]} 22. c5 {[%emt 0:00:10]} Qc7 {[%emt 0:00:
06]} 23. f4 {[%emt 0:00:03]} f6 {[%emt 0:00:02]} 24. exf6 {[%emt 0:00:02]} gxf6
{[%emt 0:00:08]} 25. Qc3 {[%emt 0:00:05]} e5 {[%emt 0:00:08]} 26. f5 {[%emt 0:
00:01]} Bf7 {[%emt 0:00:05]} 27. Bc4 {[%emt 0:00:25]} Rd4 {[%emt 0:00:05]} 28.
Bxf7+ {[%emt 0:00:02]} Qxf7 {[%emt 0:00:03]} 29. Qe3 {[%emt 0:00:07]} Red8 {
[%emt 0:00:01]} 30. Kh4 {[%emt 0:00:29]} Rd3 {[%emt 0:00:07]} 31. Qc1 Qg7 {
[%emt 0:00:07]} 32. Rg1 {[%emt 0:00:07]} h6 {[%emt 0:00:02]} 33. b4 {[%emt 0:
00:15]} Kh7 {[%emt 0:00:01]} 34. a4 {[%emt 0:00:02]} Qg5+ {[%emt 0:00:03]} 35.
Qxg5 {[%emt 0:00:02]} hxg5+ 36. Kh5 Rxh3# {[%emt 0:00:02]} 0-1

[Event "FIDE Women World Blitz 2021"]
[Site "Warsaw"]
[Date "2021.12.30"]
[Round "14.15"]
[White "Osmak, Yuliia"]
[Black "Muzychuk, Mariya"]
[Result "1/2-1/2"]
[ECO "A33"]
[WhiteElo "2198"]
[BlackElo "2536"]
[Annotator "ChessBase"]
[PlyCount "132"]
[EventDate "2021.12.29"]
[EventType "swiss"]
[EventCountry "POL"]
[Tiebreak "Cut1 Buchholz"]
[SourceTitle "playchess.com"]
[Source "ChessBase"]
[SourceQuality "1"]
[TimeControl "180+2"]

1. c4 {[%emt 0:00:01]} c5 {[%emt 0:00:00]} 2. Nf3 {[%emt 0:00:02]} Nc6 3. d4 {
[%emt 0:00:01]} cxd4 4. Nxd4 {[%emt 0:00:01]} Nf6 {[%emt 0:00:03]} 5. Nc3 {
[%emt 0:00:02]} e6 {[%emt 0:00:01]} 6. a3 {[%emt 0:00:01]} Bc5 {[%emt 0:00:09]}
7. Nb3 {[%emt 0:00:02]} Bb6 {[%emt 0:00:00]} 8. c5 {[%emt 0:00:21]} Bc7 {
[%emt 0:00:01]} 9. g3 {[%emt 0:00:07]} O-O {[%emt 0:00:06]} 10. Bg2 {[%emt 0:
00:01]} b6 {[%emt 0:00:03]} 11. O-O {[%emt 0:00:07]} Rb8 {[%emt 0:00:08]} 12.
Rb1 {[%emt 0:00:15]} Be5 {[%emt 0:00:07]} 13. Qc2 {[%emt 0:00:16]} bxc5 {
[%emt 0:00:15]} 14. Nxc5 {[%emt 0:00:12]} d5 {[%emt 0:00:09]} 15. e3 {[%emt 0:
00:08]} Qe7 {[%emt 0:00:16]} 16. b4 {[%emt 0:00:12]} a5 {[%emt 0:00:11]} 17.
Nd3 {[%emt 0:00:09]} axb4 {[%emt 0:00:04]} 18. Nxe5 {[%emt 0:00:09]} Nxe5 {
[%emt 0:00:02]} 19. axb4 {[%emt 0:00:01]} Bd7 {[%emt 0:00:13]} 20. b5 {[%emt 0:
00:06]} Rfc8 {[%emt 0:00:02]} 21. Qb3 {[%emt 0:00:04]} Nc4 {[%emt 0:00:13]} 22.
Rd1 {[%emt 0:00:08]} Qc5 {[%emt 0:00:01]} 23. h3 {[%emt 0:00:18]} Na5 {[%emt 0:
00:03]} 24. Qa4 {[%emt 0:00:07]} Qxc3 {[%emt 0:00:14]} 25. Bd2 Qc2 {[%emt 0:00:
09]} 26. Qxc2 {[%emt 0:00:42]} Rxc2 {[%emt 0:00:01]} 27. Bxa5 {[%emt 0:00:01]}
Rxb5 {[%emt 0:00:06]} 28. Rxb5 {[%emt 0:00:01]} Bxb5 {[%emt 0:00:01]} 29. Rb1 {
[%emt 0:00:02]} Bd7 {[%emt 0:00:03]} 30. Rb8+ {[%emt 0:00:04]} Rc8 {[%emt 0:00:
02]} 31. Rb7 {[%emt 0:00:02]} Bc6 {[%emt 0:00:06]} 32. Ra7 {[%emt 0:00:03]} h6
{[%emt 0:00:22]} 33. Bb6 {[%emt 0:00:05]} Nd7 {[%emt 0:00:04]} 34. Bd4 {
[%emt 0:00:03]} e5 {[%emt 0:00:09]} 35. Ba1 {[%emt 0:00:09]} f6 {[%emt 0:00:03]
} 36. g4 {[%emt 0:00:03]} Nc5 {[%emt 0:00:17]} 37. Bb2 {[%emt 0:00:04]} Nd3 {
[%emt 0:00:05]} 38. Bc3 {[%emt 0:00:02]} d4 {[%emt 0:00:07]} 39. Bxc6 {[%emt 0:
00:04]} Rxc6 {[%emt 0:00:01]} 40. Bd2 {[%emt 0:00:02]} dxe3 {[%emt 0:00:01]}
41. Bxe3 {[%emt 0:00:01]} Kh7 {[%emt 0:00:07]} 42. h4 {[%emt 0:00:02]} e4 {
[%emt 0:00:03]} 43. Kg2 {[%emt 0:00:02]} Ne5 {[%emt 0:00:03]} 44. Kg3 {[%emt 0:
00:02]} Rc3 {[%emt 0:00:05]} 45. h5 {[%emt 0:00:02]} Nc4 {[%emt 0:00:02]} 46.
Kf4 {[%emt 0:00:02]} Nxe3 {[%emt 0:00:02]} 47. fxe3 {[%emt 0:00:01]} Rc4 {
[%emt 0:00:01]} 48. Re7 {[%emt 0:00:01]} Rc1 {[%emt 0:00:03]} 49. Rxe4 {
[%emt 0:00:02]} Rf1+ {[%emt 0:00:01]} 50. Kg3 {[%emt 0:00:02]} Kg8 {[%emt 0:00:
01]} 51. Re7 {[%emt 0:00:01]} Kf8 {[%emt 0:00:01]} 52. Ra7 {[%emt 0:00:01]} f5
{[%emt 0:00:02]} 53. gxf5 {[%emt 0:00:03]} Rxf5 {[%emt 0:00:02]} 54. Kg4 {
[%emt 0:00:02]} Rg5+ {[%emt 0:00:01]} 55. Kh4 {[%emt 0:00:01]} Re5 {[%emt 0:00:
02]} 56. Ra3 {[%emt 0:00:05]} Re4+ {[%emt 0:00:02]} 57. Kg3 {[%emt 0:00:02]}
Kf7 {[%emt 0:00:00]} 58. Kf3 {[%emt 0:00:03]} Rh4 {[%emt 0:00:01]} 59. Ra5 {
[%emt 0:00:03]} Kf6 {[%emt 0:00:01]} 60. Rb5 {[%emt 0:00:02]} Rh1 {[%emt 0:00:
02]} 61. Ra5 {[%emt 0:00:01]} Rg1 {[%emt 0:00:03]} 62. Kf4 {[%emt 0:00:03]}
Rf1+ {[%emt 0:00:03]} 63. Kg4 {[%emt 0:00:01]} Re1 {[%emt 0:00:03]} 64. Kf4 {
[%emt 0:00:01]} Rf1+ {[%emt 0:00:04]} 65. Kg4 {[%emt 0:00:01]} Rg1+ {[%emt 0:
00:07]} 66. Kf4 {[%emt 0:00:01]} Rf1+ {[%emt 0:00:00]} 1/2-1/2

[Event "FIDE Women World Blitz 2021"]
[Site "Warsaw"]
[Date "2021.12.30"]
[Round "14.16"]
[White "Atalik, Ekaterina"]
[Black "Maltsevskaya, Aleksandra"]
[Result "0-1"]
[ECO "B07"]
[WhiteElo "2430"]
[BlackElo "2411"]
[Annotator "NA"]
[PlyCount "95"]
[EventDate "2021.12.29"]
[EventType "swiss"]
[EventCountry "POL"]
[Tiebreak "Cut1 Buchholz"]
[SourceTitle "playchess.com"]
[Source "ChessBase"]
[SourceQuality "1"]
[TimeControl "180+2"]

1. Nf3 {[%emt 0:00:01]} Nf6 {[%emt 0:00:00]} 2. g3 {[%emt 0:00:01]} g6 {
[%emt 0:00:01]} 3. Bg2 {[%emt 0:00:01]} Bg7 {[%emt 0:00:01]} 4. O-O {[%emt 0:
00:02]} O-O {[%emt 0:00:02]} 5. d4 {[%emt 0:00:02]} d6 {[%emt 0:00:05]} 6. Re1
{[%emt 0:00:03]} Nbd7 {[%emt 0:00:11]} 7. e4 {[%emt 0:00:02]} e5 {[%emt 0:00:
01]} 8. Nc3 {[%emt 0:00:02]} c6 {[%emt 0:00:04]} 9. h3 {[%emt 0:00:09]} Re8 {
[%emt 0:00:11]} 10. Be3 {[%emt 0:00:05]} a6 {[%emt 0:00:20]} 11. Qd2 {[%emt 0:
00:05]} b5 {[%emt 0:00:03]} 12. a3 {[%emt 0:00:05]} Bb7 {[%emt 0:00:05]} 13.
Rad1 {[%emt 0:00:06]} Qe7 {[%emt 0:00:12]} 14. dxe5 {[%emt 0:00:15]} dxe5 {
[%emt 0:00:01]} 15. Bg5 {[%emt 0:00:05]} Nb6 {[%emt 0:00:17]} 16. Nh2 {[%emt 0:
00:06]} Nc4 {[%emt 0:00:05]} 17. Qc1 {[%emt 0:00:01]} Qf8 {[%emt 0:00:06]} 18.
Bxf6 {[%emt 0:00:13]} Bxf6 {[%emt 0:00:01]} 19. Rd7 {[%emt 0:00:05]} Bc8 {
[%emt 0:00:10]} 20. Rd3 {[%emt 0:00:14]} Bg7 {[%emt 0:00:05]} 21. Red1 {
[%emt 0:00:26]} a5 {[%emt 0:00:01]} 22. a4 {[%emt 0:00:12]} b4 {[%emt 0:00:15]}
23. Ne2 {[%emt 0:00:02]} Ba6 {[%emt 0:00:17]} 24. Bf1 {[%emt 0:00:07]} Nb6 {
[%emt 0:00:06]} 25. Rd6 {[%emt 0:00:04]} Nxa4 {[%emt 0:00:03]} 26. Rxc6 {
[%emt 0:00:18]} Rec8 {[%emt 0:00:07]} 27. Rxc8 {[%emt 0:00:02]} Rxc8 {[%emt 0:
00:01]} 28. Qa1 {[%emt 0:00:07]} Qe8 {[%emt 0:00:33]} 29. b3 {[%emt 0:00:26]}
Bxe2 30. Bxe2 {[%emt 0:00:01]} Nc3 {[%emt 0:00:02]} 31. Re1 {[%emt 0:00:02]}
Nxe2+ {[%emt 0:00:05]} 32. Rxe2 {[%emt 0:00:02]} Qb5 {[%emt 0:00:06]} 33. Qd1 {
[%emt 0:00:05]} Bf6 {[%emt 0:00:05]} 34. Rd2 {[%emt 0:00:05]} h5 {[%emt 0:00:
04]} 35. Nf3 {[%emt 0:00:04]} Kg7 {[%emt 0:00:04]} 36. Kg2 {[%emt 0:00:02]} Rc3
{[%emt 0:00:05]} 37. Rd5 {[%emt 0:00:04]} Qc6 {[%emt 0:00:03]} 38. Rd6 {
[%emt 0:00:06]} Qxe4 {[%emt 0:00:05]} 39. Rd3 {[%emt 0:00:05]} Rxd3 {[%emt 0:
00:03]} 40. cxd3 {[%emt 0:00:02]} Qd5 {[%emt 0:00:01]} 41. Qc2 {[%emt 0:00:01]}
a4 {[%emt 0:00:10]} 42. bxa4 {[%emt 0:00:06]} b3 43. Qb1 {[%emt 0:00:05]} Be7 {
[%emt 0:00:07]} 44. a5 {[%emt 0:00:06]} Ba3 {[%emt 0:00:01]} 45. a6 {[%emt 0:
00:02]} b2 {[%emt 0:00:01]} 46. a7 {[%emt 0:00:03]} Qb7 {[%emt 0:00:01]} 47.
Qa2 {[%emt 0:00:05]} Qxa7 {[%emt 0:00:03]} 48. Nxe5 {[%emt 0:00:04]} 0-1